Workbook

Sheet Spreadsheet14.1
B9: Parameters
B10: Interest rate | D10: 0.05
B11: Counterparty CDS Spread | D11: 500
B12: Institution CDS Spread | D12: 250
B13: Institution Spread Borrowing | D13: 250
B14: Institution Spread Lending | D14: 250
B15: Counterparty Recovery | D15: 0.4
B16: Institution Recovery | D16: 0.4
B18: Calculations
C19: Conditional | D19: Unconditional
B20: FCA | C20: =SUMPRODUCT(C27:C209,E27:E209,G27:G209,A27:A209)*InstitutionSpreadLending/10000 -> 118267.6563 | D20: =SUMPRODUCT(G27:G209,A27:A209)*InstitutionSpreadLending/10000 -> 153963.3691
B21: FBA | C21: =SUMPRODUCT(C27:C209,E27:E209,H27:H209,A27:A209)*InstitutionSpreadBorrowing/10000 -> -245166.306 | D21: =SUMPRODUCT(H27:H209,A27:A209)*InstitutionSpreadBorrowing/10000 -> -316524.4791
B22: FVA | C22: =C20+C21 -> -126898.6497 | D22: =D20+D21 -> -162561.11
B23: FVA (symmetric) | C23: =SUMPRODUCT(C27:C209,E27:E209,I27:I209,A27:A209)*InstitutionSpreadBorrowing/10000 -> -126898.6497 | D23: =SUMPRODUCT(I27:I209,A27:A209)*InstitutionSpreadBorrowing/10000 -> -162561.11
C25: Survival (C) | D25: Def Prob (C) | E25: Survival (I) | F25: Def Prob (I) | G25: EE | H25: NEE | I25: EFV
B26: 0 | C26: 1 | E26: 1 | G26: 0.0007869536719 | H26: 0 | I26: =G26+H26 -> 0.0007869536719
A27: =B27-B26 -> 0.002747252747 | B27: 0.002747252747 | C27: =C26*EXP(-(B27-B26)*CntrptyCDS/10000/(1-CntrptyRec)) -> 0.9997710885 | D27: =C26-C27 -> 0.0002289115247 | E27: =E26*EXP(-(B27-B26)*InstitutionCDS/10000/(1-InstitutionRec)) -> 0.9998855377 | F27: =-E26+E27 -> -0.0001144623132 | G27: 154616.2698 | H27: -156490.5975 | I27: =G27+H27 -> -1874.32772
A28: =B28-B27 -> 0.02472527473 | B28: 0.02747252747 | C28: 0.9977132413 | D28: 0.002057847139 | E28: 0.9988559663 | F28: =-E27+E28 -> -0.001029571425 | G28: 445342.2023 | H28: -528237.5259 | I28: -82895.32367
A29: =B29-B28 -> 0.02747252747 | B29: 0.05494505495 | C29: 0.9954317119 | D29: 0.002281529399 | E29: 0.9977132413 | F29: -0.001142724925 | G29: 602680.0148 | H29: -772880.7841 | I29: -170200.7693
A30: =B30-B29 -> 0.02747252747 | B30: 0.08241758242 | C30: 0.9931553998 | D30: 0.002276312092 | E30: 0.9965718237 | F30: -0.001141417609 | G30: 716600.0478 | H30: -963501.8283 | I30: -246901.7804
A31: =B31-B30 -> 0.02747252747 | B31: 0.1098901099 | C31: 0.9908842931 | D31: 0.002271106715 | E31: 0.9954317119 | F31: -0.001140111789 | G31: 799007.2683 | H31: -1134596.901 | I31: -335589.6331
A32: =B32-B31 -> 0.02747252747 | B32: 0.1373626374 | C32: 0.9886183799 | D32: 0.002265913242 | E32: 0.9942929045 | F32: -0.001138807463 | G32: 872265.8256 | H32: -1303347.195 | I32: -431081.369
A33: =B33-B32 -> 0.02747252747 | B33: 0.1648351648 | C33: 0.9863576482 | D33: 0.002260731646 | E33: 0.9931553998 | F33: -0.001137504629 | G33: 937725.1881 | H33: -1436232.974 | I33: -498507.7855
A34: =B34-B33 -> 0.02747252747 | B34: 0.1923076923 | C34: 0.9841020863 | D34: 0.002255561898 | E34: 0.9920191966 | F34: -0.001136203285 | G34: 987815.3838 | H34: -1574358.964 | I34: -586543.5799
A35: =B35-B34 -> 0.02747252747 | B35: 0.2197802198 | C35: 0.9818516824 | D35: 0.002250403972 | E35: 0.9908842931 | F35: -0.00113490343 | G35: 1017346.23 | H35: -1715207.294 | I35: -697861.0636
A36: =B36-B35 -> 0.02747252747 | B36: 0.2472527473 | C36: 0.9796064245 | D36: 0.002245257841 | E36: 0.9897506881 | F36: -0.001133605062 | G36: 1048453.911 | H36: -1836898.303 | I36: -788444.3921
A37: =B37-B36 -> 0.02747252747 | B37: 0.2747252747 | C37: 0.9773663011 | D37: 0.002240123479 | E37: 0.9886183799 | F37: -0.00113230818 | G37: 1122504.04 | H37: -1889106.582 | I37: -766602.5413
A38: =B38-B37 -> 0.02747252747 | B38: 0.3021978022 | C38: 0.9751313002 | D38: 0.002235000857 | E38: 0.9874873671 | F38: -0.001131012781 | G38: 1144607.408 | H38: -2010622.249 | I38: -866014.8417
A39: =B39-B38 -> 0.02747252747 | B39: 0.3296703297 | C39: 0.9729014102 | D39: 0.002229889949 | E39: 0.9863576482 | F39: -0.001129718864 | G39: 1173990.947 | H39: -2144012.234 | I39: -970021.2865
A40: =B40-B39 -> 0.02747252747 | B40: 0.3571428571 | C40: 0.9706766195 | D40: 0.002224790729 | E40: 0.9852292218 | F40: -0.001128426428 | G40: 1187316.058 | H40: -2271547.027 | I40: -1084230.969
A41: =B41-B40 -> 0.02747252747 | B41: 0.3846153846 | C41: 0.9684569163 | D41: 0.00221970317 | E41: 0.9841020863 | F41: -0.00112713547 | G41: 1204454.817 | H41: -2393827.179 | I41: -1189372.362
A42: =B42-B41 -> 0.02747252747 | B42: 0.4120879121 | C42: 0.9662422891 | D42: 0.002214627244 | E42: 0.9829762404 | F42: -0.001125845989 | G42: 1213468.204 | H42: -2495416.718 | I42: -1281948.514
A43: =B43-B42 -> 0.02747252747 | B43: 0.4395604396 | C43: 0.9640327262 | D43: 0.002209562926 | E43: 0.9818516824 | F43: -0.001124557983 | G43: 1204039.839 | H43: -2607885.894 | I43: -1403846.055
A44: =B44-B43 -> 0.02747252747 | B44: 0.467032967 | C44: 0.961828216 | D44: 0.002204510189 | E44: 0.9807284109 | F44: -0.001123271451 | G44: 1206934.994 | H44: -2710529.253 | I44: -1503594.26
A45: =B45-B44 -> 0.02747252747 | B45: 0.4945054945 | C45: 0.959628747 | D45: 0.002199469006 | E45: 0.9796064245 | F45: -0.00112198639 | G45: 1191842.291 | H45: -2801586.664 | I45: -1609744.373
A46: =B46-B45 -> 0.02747252747 | B46: 0.521978022 | C46: 0.9574343076 | D46: 0.002194439351 | E46: 0.9784857217 | F46: -0.0011207028 | G46: 1443187.828 | H46: -2441521.313 | I46: -998333.485
A47: =B47-B46 -> 0.02747252747 | B47: 0.5494505495 | C47: 0.9552448864 | D47: 0.002189421198 | E47: 0.9773663011 | F47: -0.001119420678 | G47: 1458137.719 | H47: -2515456.626 | I47: -1057318.907
A48: =B48-B47 -> 0.02747252747 | B48: 0.5769230769 | C48: 0.9530604719 | D48: 0.00218441452 | E48: 0.976248161 | F48: -0.001118140023 | G48: 1459172.134 | H48: -2593467.221 | I48: -1134295.086
A49: =B49-B48 -> 0.02747252747 | B49: 0.6043956044 | C49: 0.9508810526 | D49: 0.002179419291 | E49: 0.9751313002 | F49: -0.001116860833 | G49: 1474824.226 | H49: -2660787.909 | I49: -1185963.683
A50: =B50-B49 -> 0.02747252747 | B50: 0.6318681319 | C50: 0.9487066171 | D50: 0.002174435485 | E50: 0.9740157171 | F50: -0.001115583107 | G50: 1474247.418 | H50: -2742270.382 | I50: -1268022.963
A51: =B51-B50 -> 0.02747252747 | B51: 0.6593406593 | C51: 0.9465371541 | D51: 0.002169463076 | E51: 0.9729014102 | F51: -0.001114306842 | G51: 1478622.737 | H51: -2830757.254 | I51: -1352134.517
A52: =B52-B51 -> 0.02747252747 | B52: 0.6868131868 | C52: 0.944372652 | D52: 0.002164502038 | E52: 0.9717883782 | F52: -0.001113032038 | G52: 1481038.103 | H52: -2902166.425 | I52: -1421128.322
A53: =B53-B52 -> 0.02747252747 | B53: 0.7142857143 | C53: 0.9422130997 | D53: 0.002159552344 | E53: 0.9706766195 | F53: -0.001111758691 | G53: 1479795.998 | H53: -2973437.53 | I53: -1493641.532
A54: =B54-B53 -> 0.02747252747 | B54: 0.7417582418 | C54: 0.9400584857 | D54: 0.002154613969 | E54: 0.9695661327 | F54: -0.001110486802 | G54: 1472241.056 | H54: -3050894.028 | I54: -1578652.973
A55: =B55-B54 -> 0.02747252747 | B55: 0.7692307692 | C55: 0.9379087988 | D55: 0.002149686887 | E55: 0.9684569163 | F55: -0.001109216368 | G55: 1509593.713 | H55: -3067349.784 | I55: -1557756.071
A56: =B56-B55 -> 0.02747252747 | B56: 0.7967032967 | C56: 0.9357640278 | D56: 0.002144771072 | E56: 0.967348969 | F56: -0.001107947387 | G56: 1509879.463 | H56: -3143455.168 | I56: -1633575.704
A57: =B57-B56 -> 0.02747252747 | B57: 0.8241758242 | C57: 0.9336241613 | D57: 0.002139866498 | E57: 0.9662422891 | F57: -0.001106679857 | G57: 1513076.522 | H57: -3222487.188 | I57: -1709410.666
A58: =B58-B57 -> 0.02747252747 | B58: 0.8516483516 | C58: 0.9314891881 | D58: 0.00213497314 | E58: 0.9651368753 | F58: -0.001105413778 | G58: 1502102.663 | H58: -3304401.537 | I58: -1802298.874
A59: =B59-B58 -> 0.02747252747 | B59: 0.8791208791 | C59: =C58*EXP(-(B59-B58)*CntrptyCDS/10000/(1-CntrptyRec)) -> 0.9293590971 | D59: =C58-C59 -> 0.002130090971 | E59: =E58*EXP(-(B59-B58)*InstitutionCDS/10000/(1-InstitutionRec)) -> 0.9640327262 | F59: -0.001104149148 | G59: 1490160.046 | H59: -3382315.948 | I59: -1892155.902
A60: =B60-B59 -> 0.02747252747 | B60: 0.9065934066 | C60: 0.9272338772 | D60: 0.002125219967 | E60: 0.9629298402 | F60: -0.001102885964 | G60: 1466495.284 | H60: -3459818.631 | I60: -1993323.348
A61: =B61-B60 -> 0.02747252747 | B61: 0.9340659341 | C61: 0.9251135171 | D61: 0.002120360102 | E61: 0.961828216 | F61: -0.001101624225 | G61: 1442284.432 | H61: -3526042.786 | I61: -2083758.353
A62: =B62-B61 -> 0.02747252747 | B62: 0.9615384615 | C62: 0.9229980057 | D62: 0.00211551135 | E62: 0.9607278521 | F62: -0.00110036393 | G62: 1437370.335 | H62: -3595586.991 | I62: -2158216.656
A63: =B63-B62 -> 0.02747252747 | B63: 0.989010989 | C63: 0.920887332 | D63: 0.002110673686 | E63: 0.959628747 | F63: -0.001099105076 | G63: 1418379.039 | H63: -3664297.813 | I63: -2245918.773
A64: =B64-B63 -> 0.02747252747 | B64: 1.016483516 | C64: 0.918781485 | D64: 0.002105847085 | E64: 0.9585308993 | F64: -0.001097847663 | G64: 1629546.076 | H64: -3261724.285 | I64: -1632178.209
A65: =B65-B64 -> 0.02747252747 | B65: 1.043956044 | C65: 0.9166804534 | D65: 0.002101031521 | E65: 0.9574343076 | F65: -0.001096591688 | G65: 1627625.237 | H65: -3312376.14 | I65: -1684750.903
A66: =B66-B65 -> 0.02747252747 | B66: 1.071428571 | C66: 0.9145842265 | D66: 0.002096226969 | E66: 0.9563389705 | F66: -0.00109533715 | G66: 1635397.928 | H66: -3360467.798 | I66: -1725069.87
A67: =B67-B66 -> 0.02747252747 | B67: 1.098901099 | C67: 0.9124927931 | D67: 0.002091433404 | E67: 0.9552448864 | F67: -0.001094084048 | G67: 1634086.923 | H67: -3413049.968 | I67: -1778963.045
A68: =B68-B67 -> 0.02747252747 | B68: 1.126373626 | C68: 0.9104061423 | D68: 0.0020866508 | E68: 0.9541520541 | F68: -0.001092832379 | G68: 1630558.838 | H68: -3462503.218 | I68: -1831944.38
A69: =B69-B68 -> 0.02747252747 | B69: 1.153846154 | C69: 0.9083242631 | D69: 0.002081879133 | E69: 0.9530604719 | F69: -0.001091582142 | G69: 1629865.411 | H69: -3526972.72 | I69: -1897107.309
A70: =B70-B69 -> 0.02747252747 | B70: 1.181318681 | C70: 0.9062471447 | D70: 0.002077118378 | E70: 0.9519701386 | F70: -0.001090333335 | G70: 1631880.963 | H70: -3572443.684 | I70: -1940562.721
A71: =B71-B70 -> 0.02747252747 | B71: 1.208791209 | C71: 0.9041747762 | D71: 0.00207236851 | E71: 0.9508810526 | F71: -0.001089085957 | G71: 1624199.43 | H71: -3609593.865 | I71: -1985394.435
A72: =B72-B71 -> 0.02747252747 | B72: 1.236263736 | C72: 0.9021071467 | D72: 0.002067629503 | E72: 0.9497932126 | F72: -0.001087840006 | G72: 1620135.569 | H72: -3652268.429 | I72: -2032132.86
A73: =B73-B72 -> 0.02747252747 | B73: 1.263736264 | C73: 0.9000442454 | D73: 0.002062901334 | E73: 0.9487066171 | F73: -0.00108659548 | G73: 1641490.371 | H73: -3641314.664 | I73: -1999824.293
A74: =B74-B73 -> 0.02747252747 | B74: 1.291208791 | C74: 0.8979860614 | D74: 0.002058183976 | E74: 0.9476212648 | F74: -0.001085352378 | G74: 1640629.03 | H74: -3686127.264 | I74: -2045498.234
A75: =B75-B74 -> 0.02747252747 | B75: 1.318681319 | C75: 0.895932584 | D75: 0.002053477406 | E75: 0.9465371541 | F75: -0.001084110698 | G75: 1637625.971 | H75: -3741419.783 | I75: -2103793.812
A76: =B76-B75 -> 0.02747252747 | B76: 1.346153846 | C76: 0.8938838024 | D76: 0.002048781599 | E76: 0.9454542836 | F76: -0.001082870439 | G76: 1627598.929 | H76: -3795048.666 | I76: -2167449.737
A77: =B77-B76 -> 0.02747252747 | B77: 1.373626374 | C77: 0.8918397059 | D77: 0.00204409653 | E77: 0.944372652 | F77: -0.001081631599 | G77: 1613081.645 | H77: -3837095.161 | I77: -2224013.517
A78: =B78-B77 -> 0.02747252747 | B78: 1.401098901 | C78: 0.8898002837 | D78: 0.002039422174 | E78: 0.9432922578 | F78: -0.001080394176 | G78: 1604674.546 | H78: -3882795.031 | I78: -2278120.485
A79: =B79-B78 -> 0.02747252747 | B79: 1.428571429 | C79: 0.8877655252 | D79: 0.002034758508 | E79: 0.9422130997 | F79: -0.001079158168 | G79: 1581884.568 | H79: -3918622.866 | I79: -2336738.298
A80: =B80-B79 -> 0.02747252747 | B80: 1.456043956 | C80: 0.8857354197 | D80: 0.002030105506 | E80: 0.9411351761 | F80: -0.001077923575 | G80: 1583675.378 | H80: -3963771.54 | I80: -2380096.162
A81: =B81-B80 -> 0.02747252747 | B81: 1.483516484 | C81: 0.8837099566 | D81: 0.002025463145 | E81: 0.9400584857 | F81: -0.001076690394 | G81: 1566847.97 | H81: -4002025.938 | I81: -2435177.968
A82: =B82-B81 -> 0.02747252747 | B82: 1.510989011 | C82: 0.8816891252 | D82: 0.0020208314 | E82: 0.9389830271 | F82: -0.001075458624 | G82: 1739240.338 | H82: -3593933.697 | I82: -1854693.36
A83: =B83-B82 -> 0.02747252747 | B83: 1.538461538 | C83: 0.8796729149 | D83: 0.002016210246 | E83: 0.9379087988 | F83: -0.001074228263 | G83: 1734590.234 | H83: -3651293.098 | I83: -1916702.864
A84: =B84-B83 -> 0.02747252747 | B84: 1.565934066 | C84: 0.8776613153 | D84: 0.00201159966 | E84: 0.9368357995 | F84: -0.00107299931 | G84: 1726468.556 | H84: -3709383.719 | I84: -1982915.164
A85: =B85-B84 -> 0.02747252747 | B85: 1.593406593 | C85: 0.8756543156 | D85: 0.002006999617 | E85: 0.9357640278 | F85: -0.001071771762 | G85: 1713299.998 | H85: -3752932.493 | I85: -2039632.495
A86: =B86-B85 -> 0.02747252747 | B86: 1.620879121 | C86: 0.8736519055 | D86: 0.002002410093 | E86: 0.9346934821 | F86: -0.001070545619 | G86: 1700955.039 | H86: -3794323.691 | I86: -2093368.652
A87: =B87-B86 -> 0.02747252747 | B87: 1.648351648 | C87: 0.8716540745 | D87: 0.001997831064 | E87: 0.9336241613 | F87: -0.001069320879 | G87: 1703976.313 | H87: -3831465.174 | I87: -2127488.86
A88: =B88-B87 -> 0.02747252747 | B88: 1.675824176 | C88: 0.869660812 | D88: 0.001993262507 | E88: 0.9325560637 | F88: -0.00106809754 | G88: 1691992.135 | H88: -3853276.004 | I88: -2161283.869
A89: =B89-B88 -> 0.02747252747 | B89: 1.703296703 | C89: 0.8676721076 | D89: 0.001988704396 | E89: 0.9314891881 | F89: -0.0010668756 | G89: 1681386.286 | H89: -3882219.594 | I89: -2200833.308
A90: =B90-B89 -> 0.02747252747 | B90: 1.730769231 | C90: 0.8656879509 | D90: 0.001984156709 | E90: 0.9304235331 | F90: -0.001065655058 | G90: 1669883.011 | H90: -3907537.969 | I90: -2237654.959
A91: =B91-B90 -> 0.02747252747 | B91: 1.758241758 | C91: =C90*EXP(-(B91-B90)*CntrptyCDS/10000/(1-CntrptyRec)) -> 0.8637083314 | D91: =C90-C91 -> 0.001979619422 | E91: =E90*EXP(-(B91-B90)*InstitutionCDS/10000/(1-InstitutionRec)) -> 0.9293590971 | F91: -0.001064435913 | G91: 1689600.96 | H91: -3868550.012 | I91: =G91+H91 -> -2178949.052
A92: =B92-B91 -> 0.02747252747 | B92: 1.785714286 | C92: 0.8617332389 | D92: 0.00197509251 | E92: 0.928295879 | F92: =-E91+E92 -> -0.001063218162 | G92: 1671671.234 | H92: -3905969.31 | I92: -2234298.075
A93: =B93-B92 -> 0.02747252747 | B93: 1.813186813 | C93: 0.859762663 | D93: 0.00197057595 | E93: 0.9272338772 | F93: -0.001062001805 | G93: 1652471.678 | H93: -3944788.762 | I93: -2292317.084
A94: =B94-B93 -> 0.02747252747 | B94: 1.840659341 | C94: 0.8577965933 | D94: 0.001966069718 | E94: 0.9261730903 | F94: -0.001060786839 | G94: 1644833.358 | H94: -3975844.268 | I94: -2331010.911
A95: =B95-B94 -> 0.02747252747 | B95: 1.868131868 | C95: 0.8558350195 | D95: 0.001961573792 | E95: 0.9251135171 | F95: -0.001059573263 | G95: 1620863.305 | H95: -4012690.114 | I95: -2391826.81
A96: =B96-B95 -> 0.02747252747 | B96: 1.895604396 | C96: 0.8538779313 | D96: 0.001957088146 | E96: 0.924055156 | F96: -0.001058361076 | G96: 1612279.026 | H96: -4042157.485 | I96: -2429878.46
A97: =B97-B96 -> 0.02747252747 | B97: 1.923076923 | C97: 0.8519253186 | D97: 0.001952612757 | E97: 0.9229980057 | F97: -0.001057150275 | G97: 1599177.523 | H97: -4057466.489 | I97: -2458288.967
A98: =B98-B97 -> 0.02747252747 | B98: 1.950549451 | C98: 0.849977171 | D98: 0.001948147603 | E98: 0.9219420649 | F98: -0.001055940859 | G98: 1580610.906 | H98: -4084915.369 | I98: -2504304.463
A99: =B99-B98 -> 0.02747252747 | B99: 1.978021978 | C99: 0.8480334783 | D99: 0.00194369266 | E99: 0.920887332 | F99: -0.001054732827 | G99: 1565549.608 | H99: -4109607.158 | I99: -2544057.55
A100: =B100-B99 -> 0.02747252747 | B100: 2.005494505 | C100: 0.8460942304 | D100: 0.001939247904 | E100: 0.9198338059 | F100: -0.001053526177 | G100: 1602203.492 | H100: -3962029.924 | I100: -2359826.432
A101: =B101-B100 -> 0.02747252747 | B101: 2.032967033 | C101: 0.8441594171 | D101: 0.001934813312 | E101: 0.918781485 | F101: -0.001052320908 | G101: 1695004.472 | H101: -3730617.738 | I101: -2035613.267
A102: =B102-B101 -> 0.02747252747 | B102: 2.06043956 | C102: 0.8422290282 | D102: 0.001930388861 | E102: 0.9177303679 | F102: -0.001051117017 | G102: 1682956.29 | H102: -3765915.639 | I102: -2082959.349
A103: =B103-B102 -> 0.02747252747 | B103: 2.087912088 | C103: 0.8403030537 | D103: 0.001925974527 | E103: 0.9166804534 | F103: -0.001049914504 | G103: 1671217.514 | H103: -3792133.766 | I103: -2120916.252
A104: =B104-B103 -> 0.02747252747 | B104: 2.115384615 | C104: 0.8383814834 | D104: 0.001921570288 | E104: 0.9156317401 | F104: -0.001048713366 | G104: 1666544.674 | H104: -3801428.1 | I104: -2134883.425
A105: =B105-B104 -> 0.02747252747 | B105: 2.142857143 | C105: 0.8364643073 | D105: 0.001917176121 | E105: 0.9145842265 | F105: -0.001047513603 | G105: 1666829.627 | H105: -3811322.921 | I105: -2144493.294
A106: =B106-B105 -> 0.02747252747 | B106: 2.17032967 | C106: 0.8345515153 | D106: 0.001912792002 | E106: 0.9135379113 | F106: -0.001046315212 | G106: 1661027.067 | H106: -3818807.315 | I106: -2157780.248
A107: =B107-B106 -> 0.02747252747 | B107: 2.197802198 | C107: 0.8326430974 | D107: 0.001908417908 | E107: 0.9124927931 | F107: -0.001045118192 | G107: 1648804.557 | H107: -3822242.746 | I107: -2173438.189
A108: =B108-B107 -> 0.02747252747 | B108: 2.225274725 | C108: 0.8307390436 | D108: 0.001904053817 | E108: 0.9114488705 | F108: -0.001043922541 | G108: 1633087.246 | H108: -3829099.016 | I108: -2196011.77
A109: =B109-B108 -> 0.02747252747 | B109: 2.252747253 | C109: 0.8288393439 | D109: 0.001899699705 | E109: 0.9104061423 | F109: -0.001042728259 | G109: 1621323.561 | H109: -3831736.02 | I109: -2210412.458
A110: =B110-B109 -> 0.02747252747 | B110: 2.28021978 | C110: 0.8269439883 | D110: 0.001895355551 | E110: 0.9093646069 | F110: -0.001041535343 | G110: 1625334.36 | H110: -3778526.45 | I110: -2153192.09
A111: =B111-B110 -> 0.02747252747 | B111: 2.307692308 | C111: 0.825052967 | D111: 0.00189102133 | E111: 0.9083242631 | F111: -0.001040343791 | G111: 1616661.919 | H111: -3783330.736 | I111: -2166668.816
A112: =B112-B111 -> 0.02747252747 | B112: 2.335164835 | C112: 0.82316627 | D112: 0.00188669702 | E112: 0.9072851095 | F112: -0.001039153603 | G112: 1592098.016 | H112: -3784911.469 | I112: -2192813.453
A113: =B113-B112 -> 0.02747252747 | B113: 2.362637363 | C113: 0.8212838874 | D113: 0.0018823826 | E113: 0.9062471447 | F113: -0.001037964776 | G113: 1583275.201 | H113: -3797447.134 | I113: -2214171.933
A114: =B114-B113 -> 0.02747252747 | B114: 2.39010989 | C114: 0.8194058093 | D114: 0.001878078045 | E114: 0.9052103674 | F114: -0.001036777309 | G114: 1570639.866 | H114: -3803673.732 | I114: -2233033.866
A115: =B115-B114 -> 0.02747252747 | B115: 2.417582418 | C115: 0.817532026 | D115: 0.001873783334 | E115: 0.9041747762 | F115: -0.001035591201 | G115: 1565017.886 | H115: -3813509.196 | I115: -2248491.31
A116: =B116-B115 -> 0.02747252747 | B116: 2.445054945 | C116: 0.8156625275 | D116: 0.001869498443 | E116: 0.9031403698 | F116: -0.00103440645 | G116: 1549023.005 | H116: -3811638.506 | I116: -2262615.501
A117: =B117-B116 -> 0.02747252747 | B117: 2.472527473 | C117: 0.8137973042 | D117: 0.001865223352 | E117: 0.9021071467 | F117: -0.001033223054 | G117: 1526406.066 | H117: -3810466.171 | I117: -2284060.106
A118: =B118-B117 -> 0.02747252747 | B118: 2.5 | C118: 0.8119363462 | D118: 0.001860958036 | E118: 0.9010751057 | F118: -0.001032041012 | G118: 1510539.377 | H118: -3836182.748 | I118: -2325643.372
A119: =B119-B118 -> 0.02747252747 | B119: 2.527472527 | C119: 0.8100796437 | D119: 0.001856702474 | E119: 0.9000442454 | F119: -0.001030860322 | G119: 1646643.048 | H119: -3425730.845 | I119: -1779087.797
A120: =B120-B119 -> 0.02747252747 | B120: 2.554945055 | C120: 0.808227187 | D120: 0.001852456644 | E120: 0.8990145644 | F120: -0.001029680983 | G120: 1643318.184 | H120: -3461743.758 | I120: -1818425.575
A121: =B121-B120 -> 0.02747252747 | B121: 2.582417582 | C121: 0.8063789665 | D121: 0.001848220522 | E121: 0.8979860614 | F121: -0.001028502993 | G121: 1633708.982 | H121: -3482310.622 | I121: -1848601.64
A122: =B122-B121 -> 0.02747252747 | B122: 2.60989011 | C122: 0.8045349724 | D122: 0.001843994088 | E122: 0.8969587351 | F122: -0.001027326351 | G122: 1624226.89 | H122: -3486994.863 | I122: -1862767.972
A123: =B123-B122 -> 0.02747252747 | B123: 2.637362637 | C123: =C122*EXP(-(B123-B122)*CntrptyCDS/10000/(1-CntrptyRec)) -> 0.8026951951 | D123: =C122-C123 -> 0.001839777319 | E123: =E122*EXP(-(B123-B122)*InstitutionCDS/10000/(1-InstitutionRec)) -> 0.895932584 | F123: -0.001026151055 | G123: 1612134.76 | H123: -3485554.794 | I123: -1873420.034
A124: =B124-B123 -> 0.02747252747 | B124: 2.664835165 | C124: 0.8008596249 | D124: 0.001835570192 | E124: 0.8949076069 | F124: -0.001024977104 | G124: 1605278.934 | H124: -3480396.099 | I124: -1875117.165
A125: =B125-B124 -> 0.02747252747 | B125: 2.692307692 | C125: 0.7990282522 | D125: 0.001831372686 | E125: 0.8938838024 | F125: -0.001023804495 | G125: 1591865.189 | H125: -3464262.347 | I125: -1872397.158
A126: =B126-B125 -> 0.02747252747 | B126: 2.71978022 | C126: 0.7972010674 | D126: 0.001827184778 | E126: 0.8928611692 | F126: -0.001022633228 | G126: 1574773.51 | H126: -3457506.805 | I126: -1882733.295
A127: =B127-B126 -> 0.02747252747 | B127: 2.747252747 | C127: 0.795378061 | D127: 0.001823006448 | E127: 0.8918397059 | F127: -0.001021463301 | G127: 1555252.45 | H127: -3445880.124 | I127: -1890627.674
A128: =B128-B127 -> 0.02747252747 | B128: 2.774725275 | C128: 0.7935592233 | D128: 0.001818837672 | E128: 0.8908194112 | F128: -0.001020294713 | G128: 1558113.142 | H128: -3387425.751 | I128: -1829312.609
A129: =B129-B128 -> 0.02747252747 | B129: 2.802197802 | C129: 0.7917445449 | D129: 0.001814678429 | E129: 0.8898002837 | F129: -0.001019127461 | G129: 1543688.958 | H129: -3385127.165 | I129: -1841438.207
A130: =B130-B129 -> 0.02747252747 | B130: 2.82967033 | C130: 0.7899340162 | D130: 0.001810528698 | E130: 0.8887823222 | F130: -0.001017961545 | G130: 1526329.594 | H130: -3380841.417 | I130: -1854511.823
A131: =B131-B130 -> 0.02747252747 | B131: 2.857142857 | C131: 0.7881276277 | D131: 0.001806388455 | E131: 0.8877655252 | F131: -0.001016796963 | G131: 1510690.655 | H131: -3371935.204 | I131: -1861244.549
A132: =B132-B131 -> 0.02747252747 | B132: 2.884615385 | C132: 0.7863253701 | D132: 0.001802257681 | E132: 0.8867498915 | F132: -0.001015633713 | G132: 1482523.823 | H132: -3369080.362 | I132: -1886556.539
A133: =B133-B132 -> 0.02747252747 | B133: 2.912087912 | C133: 0.7845272337 | D133: 0.001798136353 | E133: 0.8857354197 | F133: -0.001014471794 | G133: 1468406.589 | H133: -3358446.951 | I133: -1890040.362
A134: =B134-B133 -> 0.02747252747 | B134: 2.93956044 | C134: 0.7827332093 | D134: 0.001794024449 | E134: 0.8847221085 | F134: -0.001013311204 | G134: 1451387.592 | H134: -3353333.274 | I134: -1901945.682
A135: =B135-B134 -> 0.02747252747 | B135: 2.967032967 | C135: 0.7809432873 | D135: 0.001789921948 | E135: 0.8837099566 | F135: -0.001012151941 | G135: 1436436.843 | H135: -3344591.138 | I135: -1908154.295
A136: =B136-B135 -> 0.02747252747 | B136: 2.994505495 | C136: 0.7791574585 | D136: 0.001785828828 | E136: 0.8826989625 | F136: -0.001010994005 | G136: 1403169.929 | H136: -3345362.274 | I136: -1942192.345
A137: =B137-B136 -> 0.02747252747 | B137: 3.021978022 | C137: 0.7773757134 | D137: 0.001781745069 | E137: 0.8816891252 | F137: -0.001009837394 | G137: 1515262.336 | H137: -2857719.163 | I137: -1342456.827
A138: =B138-B137 -> 0.02747252747 | B138: 3.049450549 | C138: 0.7755980428 | D138: 0.001777670648 | E138: 0.880680443 | F138: -0.001008682106 | G138: 1498361.684 | H138: -2841244.155 | I138: -1342882.471
A139: =B139-B138 -> 0.02747252747 | B139: 3.076923077 | C139: 0.7738244372 | D139: 0.001773605544 | E139: 0.8796729149 | F139: -0.00100752814 | G139: 1476947.025 | H139: -2801664.851 | I139: -1324717.826
A140: =B140-B139 -> 0.02747252747 | B140: 3.104395604 | C140: 0.7720548875 | D140: 0.001769549736 | E140: 0.8786665394 | F140: -0.001006375494 | G140: 1460581.696 | H140: -2755650.346 | I140: -1295068.65
A141: =B141-B140 -> 0.02747252747 | B141: 3.131868132 | C141: 0.7702893843 | D141: 0.001765503203 | E141: 0.8776613153 | F141: -0.001005224166 | G141: 1434237.619 | H141: -2710854.498 | I141: -1276616.878
A142: =B142-B141 -> 0.02747252747 | B142: 3.159340659 | C142: 0.7685279184 | D142: 0.001761465923 | E142: 0.8766572411 | F142: -0.001004074156 | G142: 1405422.408 | H142: -2665552.497 | I142: -1260130.089
A143: =B143-B142 -> 0.02747252747 | B143: 3.186813187 | C143: 0.7667704805 | D143: 0.001757437876 | E143: 0.8756543156 | F143: -0.001002925461 | G143: 1384271.612 | H143: -2625957.438 | I143: -1241685.826
A144: =B144-B143 -> 0.02747252747 | B144: 3.214285714 | C144: 0.7650170614 | D144: 0.001753419039 | E144: 0.8746525376 | F144: -0.00100177808 | G144: 1359229.544 | H144: -2585162.104 | I144: -1225932.56
A145: =B145-B144 -> 0.02747252747 | B145: 3.241758242 | C145: 0.7632676521 | D145: 0.001749409393 | E145: 0.8736519055 | F145: -0.001000632012 | G145: 1329020.623 | H145: -2543162.276 | I145: -1214141.653
A146: =B146-B145 -> 0.02747252747 | B146: 3.269230769 | C146: 0.7615222431 | D146: 0.001745408916 | E146: 0.8726524183 | F146: -0.0009994872557 | G146: 1316201.666 | H146: -2450211.532 | I146: -1134009.866
A147: =B147-B146 -> 0.02747252747 | B147: 3.296703297 | C147: 0.7597808256 | D147: 0.001741417587 | E147: 0.8716540745 | F147: -0.0009983438085 | G147: 1289021.637 | H147: -2412048.452 | I147: -1123026.815
A148: =B148-B147 -> 0.02747252747 | B148: 3.324175824 | C148: 0.7580433902 | D148: 0.001737435386 | E148: 0.8706568728 | F148: -0.0009972016695 | G148: 1264632.269 | H148: -2367652.911 | I148: -1103020.642
A149: =B149-B148 -> 0.02747252747 | B149: 3.351648352 | C149: 0.7563099279 | D149: 0.00173346229 | E149: 0.869660812 | F149: -0.0009960608372 | G149: 1237920.797 | H149: -2329620.221 | I149: -1091699.424
A150: =B150-B149 -> 0.02747252747 | B150: 3.379120879 | C150: 0.7545804296 | D150: 0.00172949828 | E150: 0.8686658907 | F150: -0.00099492131 | G150: 1211229.457 | H150: -2291965.351 | I150: -1080735.895
A151: =B151-B150 -> 0.02747252747 | B151: 3.406593407 | C151: 0.7528548863 | D151: 0.001725543335 | E151: 0.8676721076 | F151: -0.0009937830864 | G151: 1181680.205 | H151: -2260831.298 | I151: -1079151.094
A152: =B152-B151 -> 0.02747252747 | B152: 3.434065934 | C152: 0.7511332888 | D152: =C151-C152 -> 0.001721597434 | E152: 0.8666794614 | F152: -0.0009926461651 | G152: 1148494.855 | H152: -2236358.827 | I152: -1087863.972
A153: =B153-B152 -> 0.02747252747 | B153: 3.461538462 | C153: 0.7494156283 | D153: 0.001717660556 | E153: 0.8656879509 | F153: -0.0009915105444 | G153: 1109325.095 | H153: -2217118.546 | I153: -1107793.451
A154: =B154-B153 -> 0.02747252747 | B154: 3.489010989 | C154: 0.7477018956 | D154: 0.001713732681 | E154: 0.8646975746 | F154: -0.0009903762228 | G154: 1074482.657 | H154: -2200599.127 | I154: -1126116.471
A155: =B155-B154 -> 0.02747252747 | B155: 3.516483516 | C155: =C154*EXP(-(B155-B154)*CntrptyCDS/10000/(1-CntrptyRec)) -> 0.7459920818 | D155: 0.001709813788 | E155: =E154*EXP(-(B155-B154)*InstitutionCDS/10000/(1-InstitutionRec)) -> 0.8637083314 | F155: -0.000989243199 | G155: 1183510.889 | H155: -1753032.599 | I155: =G155+H155 -> -569521.7109
A156: =B156-B155 -> 0.02747252747 | B156: 3.543956044 | C156: 0.7442861779 | D156: 0.001705903856 | E156: 0.86272022 | F156: =-E155+E156 -> -0.0009881114714 | G156: 1158226.452 | H156: -1746402.496 | I156: -588176.0442
A157: =B157-B156 -> 0.02747252747 | B157: 3.571428571 | C157: 0.7425841751 | D157: 0.001702002866 | E157: 0.8617332389 | F157: -0.0009869810386 | G157: 1126331.62 | H157: -1721886.69 | I157: -595555.0696
A158: =B158-B157 -> 0.02747252747 | B158: 3.598901099 | C158: 0.7408860643 | D158: 0.001698110796 | E158: 0.860747387 | F158: -0.000985851899 | G158: 1098042.875 | H158: -1688829.471 | I158: -590786.5954
A159: =B159-B158 -> 0.02747252747 | B159: 3.626373626 | C159: 0.7391918367 | D159: 0.001694227626 | E159: 0.859762663 | F159: -0.0009847240511 | G159: 1074093.915 | H159: -1651751.271 | I159: -577657.3563
A160: =B160-B159 -> 0.02747252747 | B160: 3.653846154 | C160: 0.7375014833 | D160: 0.001690353337 | E160: 0.8587790655 | F160: -0.0009835974936 | G160: 1045942.702 | H160: -1613384.691 | I160: -567441.9888
A161: =B161-B160 -> 0.02747252747 | B161: 3.681318681 | C161: 0.7358149954 | D161: 0.001686487907 | E161: 0.8577965933 | F161: -0.0009824722249 | G161: 1019683.18 | H161: -1577492.098 | I161: -557808.9178
A162: =B162-B161 -> 0.02747252747 | B162: 3.708791209 | C162: 0.7341323641 | D162: 0.001682631316 | E162: 0.856815245 | F162: -0.0009813482435 | G162: 998590.0323 | H162: -1542819.281 | I162: -544229.2485
A163: =B163-B162 -> 0.02747252747 | B163: 3.736263736 | C163: 0.7324535806 | D163: 0.001678783544 | E163: 0.8558350195 | F163: -0.000980225548 | G163: 969936.2877 | H163: -1515441.126 | I163: -545504.8382
A164: =B164-B163 -> 0.02747252747 | B164: 3.763736264 | C164: 0.730778636 | D164: 0.001674944571 | E164: 0.8548559153 | F164: -0.0009791041369 | G164: 964203.6552 | H164: -1435609.263 | I164: -471405.6075
A165: =B165-B164 -> 0.02747252747 | B165: 3.791208791 | C165: 0.7291075216 | D165: 0.001671114377 | E165: 0.8538779313 | F165: -0.0009779840087 | G165: 937903.3818 | H165: -1407348.629 | I165: -469445.2476
A166: =B166-B165 -> 0.02747252747 | B166: 3.818681319 | C166: 0.7274402287 | D166: 0.001667292942 | E166: 0.8529010662 | F166: -0.000976865162 | G166: 912568.9899 | H166: -1375305.42 | I166: -462736.4301
A167: =B167-B166 -> 0.02747252747 | B167: 3.846153846 | C167: 0.7257767484 | D167: 0.001663480245 | E167: 0.8519253186 | F167: -0.0009757475953 | G167: 890736.8434 | H167: -1346293.044 | I167: -455556.2003
A168: =B168-B167 -> 0.02747252747 | B168: 3.873626374 | C168: 0.7241170722 | D168: 0.001659676268 | E168: 0.8509506873 | F168: -0.0009746313072 | G168: 865250.3758 | H168: -1317462.867 | I168: -452212.4909
A169: =B169-B168 -> 0.02747252747 | B169: 3.901098901 | C169: 0.7224611912 | D169: 0.001655880988 | E169: 0.849977171 | F169: -0.0009735162961 | G169: 832803.7941 | H169: -1299427.748 | I169: -466623.9536
A170: =B170-B169 -> 0.02747252747 | B170: 3.928571429 | C170: 0.7208090968 | D170: 0.001652094388 | E170: 0.8490047684 | F170: -0.0009724025606 | G170: 806942.9407 | H170: -1285493.817 | I170: -478550.8765
A171: =B171-B170 -> 0.02747252747 | B171: 3.956043956 | C171: 0.7191607803 | D171: 0.001648316447 | E171: 0.8480334783 | F171: -0.0009712900992 | G171: 776372.1317 | H171: -1275987.742 | I171: -499615.6105
A172: =B172-B171 -> 0.02747252747 | B172: 3.983516484 | C172: 0.7175162332 | D172: 0.001644547145 | E172: 0.8470632994 | F172: -0.0009701789106 | G172: 745679.507 | H172: -1273228.965 | I172: -527549.4582
A173: =B173-B172 -> 0.02747252747 | B173: 4.010989011 | C173: 0.7158754467 | D173: 0.001640786463 | E173: 0.8460942304 | F173: -0.0009690689932 | G173: 771188.8528 | H173: -1126927.871 | I173: -355739.0181
A174: =B174-B173 -> 0.02747252747 | B174: 4.038461538 | C174: 0.7142384123 | D174: 0.00163703438 | E174: 0.8451262701 | F174: -0.0009679603456 | G174: 849063.3469 | H174: -910189.9268 | I174: -61126.57988
A175: =B175-B174 -> 0.02747252747 | B175: 4.065934066 | C175: 0.7126051215 | D175: 0.001633290878 | E175: 0.8441594171 | F175: -0.0009668529663 | G175: 819002.7484 | H175: -925065.7245 | I175: -106062.9761
A176: =B176-B175 -> 0.02747252747 | B176: 4.093406593 | C176: 0.7109755655 | D176: 0.001629555935 | E176: 0.8431936702 | F176: -0.0009657468539 | G176: 787907.7283 | H176: -937005.648 | I176: -149097.9197
A177: =B177-B176 -> 0.02747252747 | B177: 4.120879121 | C177: 0.709349736 | D177: 0.001625829534 | E177: 0.8422290282 | F177: -0.0009646420069 | G177: 763278.5747 | H177: -944760.6973 | I177: -181482.1226
A178: =B178-B177 -> 0.02747252747 | B178: 4.148351648 | C178: 0.7077276243 | D178: 0.001622111655 | E178: 0.8412654898 | F178: -0.0009635384239 | G178: 734612.0279 | H178: -953014.7249 | I178: -218402.697
A179: =B179-B178 -> 0.02747252747 | B179: 4.175824176 | C179: 0.7061092221 | D179: 0.001618402277 | E179: 0.8403030537 | F179: -0.0009624361034 | G179: 708205.2806 | H179: -962474.4299 | I179: -254269.1493
A180: =B180-B179 -> 0.02747252747 | B180: 4.203296703 | C180: 0.7044945207 | D180: 0.001614701381 | E180: 0.8393417187 | F180: -0.000961335044 | G180: 677856.5016 | H180: -973005.2921 | I180: -295148.7905
A181: =B181-B180 -> 0.02747252747 | B181: 4.230769231 | C181: 0.7028835117 | D181: 0.001611008949 | E181: 0.8383814834 | F181: -0.0009602352443 | G181: 648947.7687 | H181: -986720.4854 | I181: -337772.7167
A182: =B182-B181 -> 0.02747252747 | B182: 4.258241758 | C182: 0.7012761868 | D182: 0.00160732496 | E182: 0.8374223467 | F182: -0.0009591367028 | G182: 619527.0888 | H182: -1003963.439 | I182: -384436.3501
A183: =B183-B182 -> 0.02747252747 | B183: 4.285714286 | C183: 0.6996725374 | D183: 0.001603649396 | E183: 0.8364643073 | F183: -0.0009580394181 | G183: 611483.8688 | H183: -962545.8805 | I183: -351062.0117
A184: =B184-B183 -> 0.02747252747 | B184: 4.313186813 | C184: 0.6980725551 | D184: 0.001599982237 | E184: 0.8355073639 | F184: -0.0009569433886 | G184: 588681.045 | H184: -972637.7627 | I184: -383956.7178
A185: =B185-B184 -> 0.02747252747 | B185: 4.340659341 | C185: 0.6964762317 | D185: 0.001596323464 | E185: 0.8345515153 | F185: -0.0009558486131 | G185: 562539.4173 | H185: -985999.8574 | I185: -423460.4401
A186: =B186-B185 -> 0.02747252747 | B186: 4.368131868 | C186: 0.6948835586 | D186: 0.001592673057 | E186: 0.8335967602 | F186: -0.0009547550901 | G186: 533451.6506 | H186: -1001962.173 | I186: -468510.5223
A187: =B187-B186 -> 0.02747252747 | B187: 4.395604396 | C187: =C186*EXP(-(B187-B186)*CntrptyCDS/10000/(1-CntrptyRec)) -> 0.6932945276 | D187: 0.001589030998 | E187: =E186*EXP(-(B187-B186)*InstitutionCDS/10000/(1-InstitutionRec)) -> 0.8326430974 | F187: -0.000953662818 | G187: 504982.195 | H187: -1020460.274 | I187: -515478.0794
A188: =B188-B187 -> 0.02747252747 | B188: 4.423076923 | C188: 0.6917091304 | D188: 0.001585397268 | E188: 0.8316905256 | F188: -0.0009525717956 | G188: 480599.2717 | H188: -1042536.447 | I188: -561937.1757
A189: =B189-B188 -> 0.02747252747 | B189: 4.450549451 | C189: 0.6901273585 | D189: 0.001581771847 | E189: 0.8307390436 | F189: -0.0009514820213 | G189: 453847.3406 | H189: -1068609.349 | I189: -614762.0089
A190: =B190-B189 -> 0.02747252747 | B190: 4.478021978 | C190: 0.6885492038 | D190: 0.001578154716 | E190: 0.8297886501 | F190: -0.0009503934938 | G190: 426005.0402 | H190: -1097134.079 | I190: -671129.0385
A191: =B191-B190 -> 0.02747252747 | B191: 4.505494505 | C191: 0.6869746579 | D191: 0.001574545857 | E191: 0.8288393439 | F191: -0.0009493062116 | G191: 447551.7587 | H191: -974355.3462 | I191: -526803.5875
A192: =B192-B191 -> 0.02747252747 | B192: 4.532967033 | C192: 0.6854037127 | D192: 0.001570945251 | E192: 0.8278911237 | F192: -0.0009482201732 | G192: 537284.4391 | H192: -739374.9127 | I192: -202090.4737
A193: =B193-B192 -> 0.02747252747 | B193: 4.56043956 | C193: 0.6838363598 | D193: 0.001567352878 | E193: 0.8269439883 | F193: -0.0009471353773 | G193: 524509.0055 | H193: -740771.6062 | I193: -216262.6008
A194: =B194-B193 -> 0.02747252747 | B194: 4.587912088 | C194: 0.6822725911 | D194: 0.00156376872 | E194: 0.8259979365 | F194: -0.0009460518225 | G194: 512885.8649 | H194: -740812.1953 | I194: -227926.3304
A195: =B195-B194 -> 0.02747252747 | B195: 4.615384615 | C195: 0.6807123983 | D195: 0.001560192759 | E195: 0.825052967 | F195: -0.0009449695073 | G195: 503380.3843 | H195: -737769.7006 | I195: -234389.3163
A196: =B196-B195 -> 0.02747252747 | B196: 4.642857143 | C196: 0.6791557733 | D196: 0.001556624974 | E196: 0.8241090786 | F196: -0.0009438884303 | G196: 497074.831 | H196: -733698.7308 | I196: -236623.8999
A197: =B197-B196 -> 0.02747252747 | B197: 4.67032967 | C197: 0.677602708 | D197: 0.001553065349 | E197: 0.82316627 | F197: -0.0009428085901 | G197: 491123.8291 | H197: -730980.2981 | I197: -239856.469
A198: =B198-B197 -> 0.02747252747 | B198: 4.697802198 | C198: 0.6760531941 | D198: 0.001549513863 | E198: 0.82222454 | F198: -0.0009417299853 | G198: 483794.5342 | H198: -727853.0636 | I198: -244058.5294
A199: =B199-B198 -> 0.02747252747 | B199: 4.725274725 | C199: 0.6745072236 | D199: 0.001545970499 | E199: 0.8212838874 | F199: -0.0009406526144 | G199: 477784.5604 | H199: -729095.4465 | I199: -251310.8861
A200: =B200-B199 -> 0.02747252747 | B200: 4.752747253 | C200: 0.6729647884 | D200: 0.001542435238 | E200: 0.8203443109 | F200: -0.0009395764761 | G200: 469549.7815 | H200: -733467.8351 | I200: -263918.0536
A201: =B201-B200 -> 0.02747252747 | B201: 4.78021978 | C201: 0.6714258803 | D201: 0.00153890806 | E201: 0.8194058093 | F201: -0.0009385015689 | G201: 486681.2562 | H201: -688584.3769 | I201: -201903.1207
A202: =B202-B201 -> 0.02747252747 | B202: 4.807692308 | C202: 0.6698904914 | D202: 0.001535388949 | E202: 0.8184683814 | F202: -0.0009374278914 | G202: 485897.4042 | H202: -685801.6975 | I202: -199904.2934
A203: =B203-B202 -> 0.02747252747 | B203: 4.835164835 | C203: 0.6683586135 | D203: 0.001531877885 | E203: 0.817532026 | F203: -0.0009363554423 | G203: 484311.7749 | H203: -685238.1544 | I203: -200926.3794
A204: =B204-B203 -> 0.02747252747 | B204: 4.862637363 | C204: 0.6668302387 | D204: 0.00152837485 | E204: 0.8165967418 | F204: -0.0009352842201 | G204: 481016.3336 | H204: -687774.5383 | I204: -206758.2048
A205: =B205-B204 -> 0.02747252747 | B205: 4.89010989 | C205: 0.6653053588 | D205: 0.001524879826 | E205: 0.8156625275 | F205: -0.0009342142234 | G205: 478161.9607 | H205: -692373.8544 | I205: -214211.8937
A206: =B206-B205 -> 0.02747252747 | B206: 4.917582418 | C206: 0.663783966 | D206: 0.001521392793 | E206: 0.8147293821 | F206: -0.0009331454508 | G206: 476055.5755 | H206: -699247.5341 | I206: -223191.9585
A207: =B207-B206 -> 0.02747252747 | B207: 4.945054945 | C207: 0.6622660523 | D207: 0.001517913735 | E207: 0.8137973042 | F207: -0.0009320779009 | G207: 473774.8246 | H207: -708465.2243 | I207: -234690.3997
A208: =B208-B207 -> 0.02747252747 | B208: 4.972527473 | C208: 0.6607516097 | D208: 0.001514442633 | E208: 0.8128662926 | F208: -0.0009310115723 | G208: 472150.1956 | H208: -717931.6999 | I208: -245781.5042
A209: =B209-B208 -> 0.02747252747 | B209: 5 | C209: 0.6592406302 | D209: 0.001510979468 | E209: 0.8119363462 | F209: -0.0009299464637 | G209: 469826.2603 | H209: -731806.5305 | I209: -261980.2703
